[Event "39th Muensterland Open 2022"]
[Site "Muenster"]
[Date "2022.10.08"]
[Round "9.4"]
[White "Ollenberger, Roland"]
[Black "Quante, Lennart"]
[Result "1-0"]
[ECO "A36"]
[WhiteElo "2256"]
[BlackElo "2100"]
[Annotator "TA"]
[PlyCount "151"]
[EventDate "2022.10.01"]
[EventType "swiss"]
[EventCountry "GER"]
[SourceTitle "playchess.com"]
[Source "ChessBase"]
[SourceQuality "1"]
[TimeControl "40/5400+30:1800+30"]

{[%evp 20,151,16,3,21,2,2,-7,0,-10,-2,-17,27,-17,-13,-35,0,-31,0,0,0,-3,0,0,0,0,0,0,0,0,27,17,23,23,62,42,67,69,87,48,62,57,57,57,62,60,67,62,60,44,54,37,143,139,322,301,611,551,617,609,706,681,706,698,667,673,744,566,629,598,580,272,277,263,743,529,519,515,518,510,510,510,503,430,502,502,521,518,470,448,433,432,415,431,555,428,414,370,661,564,757,729,1281,1169,1928,912,4768,5057,2426,2310,4674,390,320,0,1564,1225,2009,1996,1188,1078,29948,29942,12804,9791,7108,6525,6512,6168,5197,4965,2469,2123,29978,29979]} 1. c4 {[%emt 0:00:03]} g6 {[%emt 0:02:03]} 2. Nc3 {[%emt 0:00:42]} Bg7 {[%emt 0:00:33]} 3. e4 {[%emt 0:02:20]} c5 {[%emt 0:00:42]} 4. g3 {[%emt 0:02:04]} Nc6 {[%emt 0:05:08]} 5. Bg2 {[%emt 0:00:30]} e6 {[%emt 0:01:25]} 6. Nge2 {[%emt 0:03:33]} Nge7 {[%emt 0:00:55]} 7. O-O {[%emt 0:04:19]} O-O {[%emt 0:01:13]} 8. d3 {[%emt 0:00:45]} d6 {[%emt 0:01:01]} 9. Rb1 {[%emt 0:11:37]} Rb8 {[%emt 0:02:38]} 10. a3 {[%emt 0:01:05]} b6 {[%emt 0:01:56]} 11. b4 {[%emt 0:04:19]} Bb7 {[%emt 0:02:19] A36: Symmetrical English vs ...g6: 4 Bg2 Bg7.} 12. Bg5 {[%emt 0:05:30]} h6 {[%emt 0:02:04]} 13. Be3 {[%emt 0:06:02]} Nd4 {[%emt 0:01:11] The position is equal.} 14. Qd2 {[%emt 0:03:33]} Kh7 {[%emt 0:00:32]} 15. f4 {[%emt 0:01:49]} f5 {[%emt 0:02:25] [#]} 16. Bf2 $146 {[%emt 0:01:38]} (16. Bxd4 cxd4 17. Nb5) (16. Bxd4 $5 cxd4 17. Nb5 $11) ({Predecessor:} 16. Bxd4 cxd4 17. Nb5 e5 18. Nxa7 Qd7 19. Nb5 Ng8 20. exf5 gxf5 21. Bxb7 Rxb7 22. h3 {1-0 (34) Batsanin,D (2298)-Farakhov,R (2258) Serpukhov 1999}) 16... Nec6 {[%emt 0:23:12][%cal Be7c6,Bc6d4,Bd4e2][%mdl 32]} 17. Nxd4 {[%emt 0:18:52]} Nxd4 {[%emt 0:00:28]} 18. Ne2 {[%emt 0:00:26]} Nxe2+ {[%emt 0:06:34]} 19. Qxe2 {[%emt 0:00:15]} Qc7 {[%emt 0:01:49]} 20. Rfd1 {[%emt 0:06:00]} Rbe8 {[%emt 0:18:29]} 21. bxc5 {[%emt 0:02:32]} dxc5 {[%emt 0:01:09]} 22. e5 {[%emt 0:00:32]} Bxg2 {[%emt 0:00:55]} 23. Kxg2 {[%emt 0:00:04]} Rf7 {[%emt 0:01:08]} 24. Qf3 {[%emt 0:01:20]} Rd7 {[%emt 0:05:50]} (24... g5) 25. Rb3 {[%emt 0:00:53]} Red8 {[%emt 0:01:04]} 26. a4 {[%emt 0:00:53]} Qc8 {[%emt 0:01:34]} 27. Ra1 {[%emt 0:01:39] White is more active.} Qa6 {[%emt 0:03:18]} 28. Raa3 {[%emt 0:02:08]} Qa5 {[%emt 0:03:27]} 29. Qe3 {[%emt 0:00:51] Inhibits Qd2.} Bf8 {[%emt 0:00:40][%cal Og6g5]} 30. Rb5 {[%emt 0:04:25]} Qa6 {[%emt 0:00:08][%cal Og6g5]} 31. Qf3 {[%emt 0:00:14]} Qc8 {[%emt 0:04:56]} 32. a5 {[%emt 0:03:41]} Qc7 {[%emt 0:00:14]} 33. axb6 {[%emt 0:01:01]} axb6 {[%emt 0:00:07]} 34. Rab3 {[%emt 0:00:48]} Rb8 {[%emt 0:02:15]} 35. Be1 {[%emt 0:00:58][%cal Oe1a5]} Rdd8 {[%emt 0:00:46] [#] Black is now going downhill.} (35... g5) (35... g5 $14) 36. Ba5 $1 $36 {[%emt 0:02:31][%cal Ra5b6][%mdl 2048] White has strong initiative.} bxa5 {[%emt 0:03:28]} (36... Qd7 $16 {was called for.} 37. Bxb6 Rdc8) 37. Rb7 $18 {[%emt 0:00:08]} Rxb7 {[%emt 0:00:38]} (37... Qxb7 38. Rxb7+ Kg8) 38. Rxb7 {[%emt 0:00:06]} Qxb7 {[%emt 0:00:38]} 39. Qxb7+ {[%emt 0:00:06][%mdl 4096] Endgame KQ-KRB} Bg7 {[%emt 0:00:21]} 40. Qb3 {[%emt 0:03:13]} Ra8 {[%emt 0:00:44]} 41. Qa4 {[%emt 0:30:48]} Ra7 {[%emt 0:04:11]} 42. Kf3 {[%emt 0:00:00]} Bf8 {[%emt 0:13:22]} 43. Ke3 {[%emt 0:00:00]} Kg7 {[%emt 0:04:32]} 44. Qc6 {[%emt 0:00:00]} Kf7 {[%emt 0:01:55]} 45. Qb6 {[%emt 0:00:00]} (45. d4 $142) 45... Rd7 {[%emt 0:00:59]} 46. Qxa5 {[%emt 0:00:00]} h5 $2 {[%emt 0:01:22]} (46... Be7 47. h4 Rd8) 47. Qb6 {[%emt 0:00:00]} Be7 {[%emt 0:00:25]} 48. Qb8 {[%emt 0:00:00] [#] Hoping for Qh8.} Rd8 {[%emt 0:00:07] Against Qh8} 49. Qb7 {[%emt 0:00:00]} Rd4 {[%emt 0:00:25]} 50. h3 {[%emt 0:00:00]} Rd8 {[%emt 0:00:39]} 51. Qf3 {[%emt 0:00:00]} Rd4 {[%emt 0:05:46]} 52. Kd2 {[%emt 0:00:00]} Bf8 {[%emt 0:00:35]} 53. Kc3 {[%emt 0:00:00]} Be7 {[%emt 0:00:37]} 54. Kc2 {[%emt 0:00:00]} Bf8 {[%emt 0:00:07]} 55. Kb3 {[%emt 0:00:00]} Be7 {[%emt 0:00:07]} 56. Ka4 {[%emt 0:00:00]} Bf8 {[%emt 0:01:11]} 57. Kb5 {[%emt 0:00:00]} Be7 {[%emt 0:00:15]} 58. Kc6 {[%emt 0:00:00]} Bf8 $2 {[%emt 0:00:24]} (58... Rd8 59. Kc7 Rd4) 59. g4 {[%emt 0:00:00]} fxg4 {[%emt 0:00:37]} 60. hxg4 {[%emt 0:00:00]} hxg4 {[%emt 0:00:14]} 61. Qxg4 {[%emt 0:00:00] Threatens to win with Qg5.} Bg7 {[%emt 0:02:14]} 62. Qg3 {[%emt 0:00:00]} (62. Qg5 $142 Rxd3 63. Kxc5) 62... Bf8 {[%emt 0:00:25]} 63. Qh4 {[%emt 0:00:00] Qf6+ is the strong threat.} Bg7 {[%emt 0:00:31] Prevents Qf6+.} 64. Kxc5 {[%emt 0:00:00]} Rxd3 {[%emt 0:00:15]} 65. Kc6 $2 {[%emt 0:00:00]} (65. Kb5 Rd4 66. Qf2) 65... Rd4 {[%emt 0:00:37]} 66. Kc5 $2 {[%emt 0:00:00]} (66. Kb5 Bxe5 67. Qh7+ Bg7 68. c5 Rxf4 69. c6) 66... Rd3 $1 {[%emt 0:01:02]} 67. Qh2 {[%emt 0:00:13]} Bf8+ {[%emt 0:00:27]} 68. Kc6 {[%emt 0:01:25]} Rd4 {[%emt 0:00:22]} 69. Kb5 {[%emt 0:00:59]} Rd3 {[%emt 0:00:38]} 70. Qh7+ {[%emt 0:02:24]} Bg7 {[%emt 0:00:05]} 71. c5 {[%emt 0:00:07] Threatening mate with c6.} Rb3+ {[%emt 0:00:48]} 72. Ka6 {[%emt 0:00:58] aiming for c6.} Ra3+ {[%emt 0:00:11]} 73. Kb7 {[%emt 0:00:08] And now c6 would win.} Rb3+ {[%emt 0:00:11]} 74. Kc7 {[%emt 0:00:07]} Rb4 {[%emt 0:00:31]} 75. Qh2 {[%emt 0:00:41]} g5 {[%emt 0:01:23]} 76. Qh5+ {[%emt 0:00:22] Weighted Error Value: White=0.27 (precise) /Black=0.38} 1-0

[Event "39th Muensterland Open 2022"]
[Site "Muenster"]
[Date "2022.10.08"]
[Round "9.5"]
[White "Dordevic, Tom"]
[Black "Bentel, Robin"]
[Result "1/2-1/2"]
[ECO "A39"]
[WhiteElo "1767"]
[BlackElo "2247"]
[Annotator "TA"]
[PlyCount "110"]
[EventDate "2022.10.01"]
[EventType "swiss"]
[EventCountry "GER"]
[SourceTitle "playchess.com"]
[Source "ChessBase"]
[SourceQuality "1"]
[TimeControl "40/5400+30:1800+30"]

{[%evp 19,110,0,0,-4,-4,-4,-3,-7,0,0,0,-2,0,0,66,69,67,0,22,14,12,18,38,-11,10,-62,-54,-52,-43,-69,17,7,7,7,7,6,7,10,11,14,16,0,0,0,0,0,0,0,0,0,0,0,0,0,0,0,0,0,0,-8,0,0,0,0,0,0,0,0,0,0,68,65,69,8,14,14,53,18,28,8,469,506,270,0,0,0,0,0,0,0,0,0,0]} 1. Nf3 {[%emt 0:00:04]} Nf6 {[%emt 0:00:11]} 2. g3 {[%emt 0:00:04]} g6 {[%emt 0:00:20]} 3. Bg2 {[%emt 0:00:03]} Bg7 {[%emt 0:00:07]} 4. O-O {[%emt 0:00:04]} O-O {[%emt 0:00:38]} 5. c4 {[%emt 0:00:04]} c5 {[%emt 0:04:17]} 6. d4 {[%emt 0:00:28]} cxd4 {[%emt 0:01:23]} 7. Nxd4 {[%emt 0:00:05]} Nc6 {[%emt 0:06:45]} 8. Nc3 {[%emt 0:00:37]} Nxd4 {[%emt 0:03:46]} 9. Qxd4 {[%emt 0:00:05]} d6 {[%emt 0:00:09]} 10. Rd1 {[%emt 0:02:35]} (10. Qd3) 10... Be6 {[%emt 0:05:27][%cal Of6d5]} 11. Qd2 {[%emt 0:07:49] Inhibits Nd5. A39: Symmetrical English vs ...g6: 4 Bg2 Bg7 5 Nf3 Nf6 6 0-0 0-0 7 d4.} Bxc4 {[%emt 0:02:59]} 12. Bxb7 {[%emt 0:01:49]} Rb8 {[%emt 0:00:06]} 13. Bg2 {[%emt 0:00:10] [#]} Qb6 $146 {[%emt 0:05:46]} ({Predecessor:} 13... Nd7 14. Qc2 Qa5 15. Bd2 Rfc8 16. Nd5 Qd8 17. Bc3 Bxd5 18. Bxd5 Bxc3 19. bxc3 Qa5 {½-½ (54) Yepez Obando,O-Jimenez Zerquera,E Caracas 1967}) 14. b3 {[%emt 0:03:42]} Be6 {[%emt 0:15:37]} 15. Bb2 {[%emt 0:02:50]} h5 {[%emt 0:01:05]} 16. Rac1 {[%emt 0:03:05]} h4 {[%emt 0:06:43]} (16... Rfc8) (16... Rfc8 $11) 17. Na4 $14 {[%emt 0:06:14]} Qb5 {[%emt 0:07:44]} 18. Bd4 {[%emt 0:05:02]} (18. Rc7) ({Better is} 18. Rc7 $1 $14) 18... hxg3 {[%emt 0:03:08]} 19. hxg3 {[%emt 0:00:52]} Qh5 {[%emt 0:03:23]} 20. f3 {[%emt 0:06:10]} Bh3 {[%emt 0:14:49]} 21. e4 {[%emt 0:12:38]} (21. Kf2 Bh6 22. Be3 Bxg2 23. Kxg2 (23. Bxh6 Qh2) 23... Bxe3 24. Qxe3) (21. Bxa7 $14 Bh6 22. Be3 Bxe3+ 23. Qxe3) 21... Nd7 {[%emt 0:04:06]} (21... Bh6 22. Be3 (22. f4 e5) 22... Bxe3+ 23. Qxe3 Rbc8) (21... Bh6 $5 {[%cal Rh6d2]} 22. Be3 (22. f4 e5 $17) 22... Bxe3+ 23. Qxe3 Rbc8 $11) 22. Bxh3 {[%emt 0:07:38]} (22. Bxa7 Bh6 23. f4) (22. Bxa7 $11 Bh6 23. f4) 22... Qxh3 $15 {[%emt 0:04:57]} 23. Qg2 {[%emt 0:00:37]} Bxd4+ {[%emt 0:00:53]} 24. Rxd4 {[%emt 0:00:05]} Qxg2+ {[%emt 0:00:06]} (24... Qh5) (24... Qh5 $15) 25. Kxg2 $11 {[%emt 0:40:10]} Rfc8 {[%emt 0:01:30] Prevents Rc7.} 26. Rdc4 {[%emt 0:00:00]} Rxc4 {[%emt 0:00:09]} 27. Rxc4 {[%emt 0:00:00][%mdl 4096] Endgame KRN-KRN} Rb7 {[%emt 0:00:55] Against Rc7} 28. Kf2 {[%emt 0:00:00]} Kg7 {[%emt 0:01:17]} 29. Ke3 {[%emt 0:00:00]} f5 {[%emt 0:02:47]} 30. Kd4 {[%emt 0:00:00]} Ne5 {[%emt 0:00:45]} 31. Rc3 {[%emt 0:00:00]} Rb4+ {[%emt 0:01:51]} 32. Ke3 {[%emt 0:00:00]} fxe4 {[%emt 0:00:22]} 33. fxe4 {[%emt 0:00:00]} Ng4+ {[%emt 0:00:29]} 34. Kf3 {[%emt 0:00:00]} Ne5+ {[%emt 0:00:05]} 35. Ke3 {[%emt 0:00:00]} Ng4+ {[%emt 0:01:39]} 36. Kf3 {[%emt 0:00:00]} Nf6 {[%emt 0:00:42]} 37. e5 {[%emt 0:00:00]} dxe5 {[%emt 0:00:04]} 38. Rc7 {[%emt 0:00:00][%csl LRa7,LRe7]} Kf7 {[%emt 0:00:05]} 39. Nc5 {[%emt 0:00:00]} g5 {[%emt 0:00:50]} 40. Rxa7 {[%emt 0:00:00]} g4+ {[%emt 0:00:25]} 41. Ke3 {[%emt 0:21:00]} Nd5+ {[%emt 0:02:30]} 42. Ke2 {[%emt 0:00:00]} Kf6 {[%emt 0:03:01]} 43. a4 {[%emt 0:00:00]} e4 $1 {[%emt 0:07:23]} 44. Rb7 {[%emt 0:00:00]} Rxb7 {[%emt 0:13:27]} (44... Rd4 $1 $11) 45. Nxb7 {[%emt 0:00:00] KN-KN} Ke5 {[%emt 0:00:10]} 46. a5 {[%emt 0:00:00]} (46. Nd8 $14) 46... Kd4 {[%emt 0:00:10]} 47. a6 {[%emt 0:00:00] [#] And now a7 would win.} Nc3+ {[%emt 0:00:18]} 48. Ke1 {[%emt 0:00:00] Black must now prevent a7.} Nb5 {[%emt 0:00:29]} 49. Nd8 {[%emt 0:00:00] Strongly threatening Nc6+.} Ke3 $2 {[%emt 0:02:21][%mdl 8192]} (49... Kc5 $11 {and Black stays safe.}) 50. Nc6 $18 {[%emt 0:08:22] Hoping for b4.} Nc7 {[%emt 0:00:21]} 51. Ne5 $2 {[%emt 0:05:28] [#]} ({White must play} 51. a7 $18) 51... Nxa6 $11 {[%emt 0:00:11] The position is equal.} 52. Nxg4+ {[%emt 0:00:09]} Kf3 {[%emt 0:00:19]} 53. Ne5+ {[%emt 0:00:21]} Kxg3 {[%emt 0:00:22]} 54. Ke2 {[%emt 0:00:04]} Kf4 {[%emt 0:01:21]} 55. Ng6+ {[%emt 0:00:05]} Kf5 {[%emt 0:00:23] Weighted Error Value: White=0.19 (very precise) /Black=0.27 (precise)} 1/2-1/2

[Event "39th Muensterland Open 2022"]
[Site "Muenster"]
[Date "2022.10.08"]
[Round "9.6"]
[White "Goldschmidt, Christian"]
[Black "Yin, Haode"]
[Result "1-0"]
[ECO "C08"]
[WhiteElo "2230"]
[BlackElo "1779"]
[Annotator "TA"]
[PlyCount "93"]
[EventDate "2022.10.01"]
[EventType "swiss"]
[EventCountry "GER"]
[SourceTitle "playchess.com"]
[Source "ChessBase"]
[SourceQuality "1"]
[TimeControl "40/5400+30:1800+30"]

{[%evp 12,93,28,15,7,0,0,0,0,0,4,0,15,14,8,11,9,14,9,8,8,8,16,2,11,0,0,0,0,0,0,0,0,0,0,-43,-8,-104,-84,-87,-88,-92,-79,-112,-116,-119,-90,-98,0,0,0,0,8,8,8,8,10,10,40,25,19,10,51,12,65,0,0,0,77,77,225,209,228,212,402,387,387,380,363,350,6254,5995,29998,29999]} 1. e4 {[%emt 0:24:20]} e6 {[%emt 0:00:41]} 2. d4 {[%emt 0:00:06]} d5 {[%emt 0:00:04]} 3. Nd2 {[%emt 0:00:04]} c5 {[%emt 0:00:05]} 4. exd5 {[%emt 0:00:07]} exd5 {[%emt 0:00:05]} 5. Ngf3 {[%emt 0:00:16]} Nf6 {[%emt 0:00:07]} 6. Bb5+ {[%emt 0:00:11]} Bd7 {[%emt 0:00:10]} 7. Qe2+ {[%emt 0:00:16]} Be7 {[%emt 0:00:10] C08: French Tarrasch: 3...c5 4 exd5 exd5 sidelines.} 8. Bxd7+ {[%emt 0:04:04]} Nbxd7 {[%emt 0:00:13][%cal Bb8d7,Bd7c5,Bc5e4][%mdl 32]} 9. O-O {[%emt 0:00:23]} O-O {[%emt 0:00:47] The position is equal.} 10. dxc5 {[%emt 0:00:24]} Nxc5 {[%emt 0:08:05]} 11. Nb3 {[%emt 0:00:14]} Nce4 {[%emt 1:25:33]} 12. Be3 {[%emt 0:00:39]} Re8 {[%emt 0:00:00]} 13. Qd3 {[%emt 0:04:14]} Qc7 {[%emt 0:00:00]} 14. h3 {[%emt 0:01:45] [#]} Rad8 $146 {[%emt 0:00:00]} ({Predecessor:} 14... a5 15. a4 Red8 16. c3 Nd6 17. Bf4 Qb6 18. Nbd4 Nfe4 19. b3 Rac8 20. Rac1 Nc5 {0-1 (44) Szelag,Z (1824)-Dmochowska,A (2110) Jastrzebia Gora 2019}) 15. c3 {[%emt 0:00:29]} h6 {[%emt 0:00:00]} 16. Nfd4 {[%emt 0:10:23]} Qd7 {[%emt 0:00:00]} 17. Bf4 {[%emt 0:07:04]} a6 {[%emt 0:00:00]} 18. a4 {[%emt 0:01:31]} Nc5 {[%emt 0:00:00]} 19. Nxc5 {[%emt 0:00:48]} Bxc5 {[%emt 0:00:00]} 20. Be3 {[%emt 0:09:51]} Re4 {[%emt 0:00:00]} 21. f3 {[%emt 0:03:42]} Re7 {[%emt 0:00:00]} 22. Rfe1 {[%emt 0:00:23]} Rde8 {[%emt 0:00:00]} 23. Kf1 {[%emt 0:01:40]} Qc7 {[%emt 0:00:00]} (23... Nh5) 24. Nf5 {[%emt 0:08:21]} (24. b4 Ba7 25. Bg1) (24. b4 $1 $11 Ba7 25. Nf5 Bxe3 26. Rxe3 Rxe3 27. Nxe3) 24... Bxe3 {[%emt 0:00:00]} 25. Rxe3 {[%emt 0:00:04]} Rxe3 {[%emt 0:00:00]} 26. Nxe3 {[%emt 0:00:05]} Qb6 {[%emt 0:00:00][%csl LRb2,LRe3]} 27. Nf5 {[%emt 0:10:33]} Qxb2 {[%emt 0:00:00]} 28. Rb1 {[%emt 0:00:05]} Qa3 {[%emt 0:00:00]} 29. Kg1 {[%emt 0:01:58]} Qc5+ {[%emt 0:00:00]} (29... Qxa4 30. Rxb7 Qa3 31. Kh2) (29... Re5) (29... Qxa4 $6 30. Rxb7 Qa3 31. Kh2 $11) ({Black should try} 29... a5 $17) 30. Qd4 $11 {[%emt 0:00:47]} Qc7 {[%emt 0:00:00]} 31. Nxh6+ $1 {[%emt 0:01:49]} gxh6 {[%emt 0:00:00]} 32. Qxf6 {[%emt 0:00:05][%mdl 4096] Endgame KQR-KQR} Re6 $132 {[%emt 0:00:00][%mdl 2048] Black is not keeping still} 33. Qd4 {[%emt 0:01:39]} Qc6 {[%emt 0:03:37]} 34. a5 {[%emt 0:00:52]} Kh7 {[%emt 0:02:19]} 35. Rb6 {[%emt 0:02:49]} Qc7 {[%emt 0:00:31]} 36. Rb2 {[%emt 0:03:42]} Qc6 {[%emt 0:01:08]} 37. Kf2 {[%emt 0:00:16]} Rg6 {[%emt 0:01:36]} (37... Qc7 $11) 38. Rb6 {[%emt 0:01:32]} ({White should play} 38. Kf1 $14) 38... Qc7 {[%emt 0:00:14] ...Qg3+ is the strong threat.} 39. Rxg6 {[%emt 0:00:24] Active counter play!} fxg6 {[%emt 0:00:08]} (39... Kxg6 $11 40. Qxd5 Qxc3) 40. Qxd5 {[%emt 0:00:08] KQ-KQ} Kh8 {[%emt 0:00:48] This move loses the game for Black.} (40... b6 $16) 41. c4 $18 {[%emt 0:31:57]} Qf4 {[%emt 0:04:28]} 42. g3 {[%emt 0:00:00][%cal Bg2g3,Bg3g4][%mdl 32]} (42. Qxb7 Qd2+ 43. Kf1 Qd1+ 44. Kf2 Qd2+ 45. Kg1 Qc1+ 46. Kh2 Qf4+ 47. g3 Qd2+ 48. Kh1 Qc1+ 49. Kh2 Qd2+ 50. Kh1 Qc1+ 51. Kh2 Qd2+ $11) 42... Qc1 {[%emt 0:02:31] [#]} (42... Qf8 {keeps fighting.} 43. h4 (43. Qxb7 Qc5+ 44. Kg2 Qxc4 $16) 43... Qb4) 43. Qd8+ {[%emt 0:00:00]} ({Less strong is} 43. Qe5+ Kh7 44. Qc7+ Kh8 45. Qc8+ (45. Qxb7 Qd2+ 46. Kf1 Qd1+ 47. Kg2 Qe2+ 48. Kh1 Qe1+ 49. Kh2 Qf2+ 50. Kh1 Qe1+ 51. Kh2 Qf2+ 52. Kh1 Qe1+ $11) 45... Kg7 46. Qxb7+ Kf8 47. Qb4+ (47. Qxa6 Qd2+ 48. Kg1 Qd1+ 49. Kh2 Qe2+ 50. Kh1 Qd1+ 51. Kh2 Qe2+ 52. Kg1 Qe1+ 53. Kh2 Qf2+ 54. Kh1 Qe1+ 55. Kh2 Qf2+ 56. Kh1 Qe1+ 57. Kh2 $11) 47... Kg8 48. Qb8+ Kg7 49. Qc7+ Kh8 $18) 43... Kg7 {[%emt 0:00:26]} 44. Qc7+ {[%emt 0:00:00]} Kf6 {[%emt 0:02:34]} 45. Qb6+ {[%emt 0:00:00]} ({Worse is} 45. Qxb7 Qd2+ 46. Kf1 Qd1+ 47. Kg2 Qe2+ 48. Kg1 Qe1+ 49. Kh2 Qf2+ 50. Kh1 Qe1+ 51. Kh2 Qf2+ 52. Kh1 Qf1+ 53. Kh2 Qf2+ $11) 45... Kf5 $2 {[%emt 0:01:34]} (45... Kg7 46. Qxb7+ Kh8) 46. g4+ {[%emt 0:00:00]} Kg5 {[%emt 0:00:10]} 47. Qd8+ {[%emt 0:00:00] Weighted Error Value: White=0.11 (very precise) /Black=0.39} 1-0

[Event "39th Muensterland Open 2022"]
[Site "Muenster"]
[Date "2022.10.08"]
[Round "9.7"]
[White "Bungarten, Jona"]
[Black "Garbuz, Vitaliy"]
[Result "1-0"]
[ECO "B22"]
[WhiteElo "2010"]
[BlackElo "2142"]
[Annotator "TA"]
[PlyCount "108"]
[EventDate "2022.10.01"]
[EventType "swiss"]
[EventCountry "GER"]
[SourceTitle "playchess.com"]
[Source "ChessBase"]
[SourceQuality "1"]
[TimeControl "40/5400+30:1800+30"]

{[%evp 26,108,-2,-12,-5,-49,-26,-20,-2,-24,-18,-20,0,0,0,-59,13,4,6,12,11,7,8,8,34,28,52,8,9,8,22,20,19,20,13,15,22,8,8,12,22,0,0,0,0,0,0,0,0,0,0,0,0,0,0,0,0,0,0,0,0,0,0,0,0,0,0,0,0,0,0,0,0,0,0,0,0,0,0,0,0,0,0,0,63]} 1. e4 {[%emt 0:04:17]} c5 {[%emt 0:03:19]} 2. c3 {[%emt 0:00:58]} Nf6 {[%emt 0:00:06]} 3. e5 {[%emt 0:00:07]} Nd5 {[%emt 0:00:05]} 4. d4 {[%emt 0:00:22]} cxd4 {[%emt 0:00:06]} 5. Nf3 {[%emt 0:00:32]} Nc6 {[%emt 0:00:05]} 6. Bc4 {[%emt 0:00:06]} Nb6 {[%emt 0:00:03]} 7. Bb3 {[%emt 0:00:03]} d5 {[%emt 0:00:05]} 8. exd6 {[%emt 0:00:03]} Qxd6 {[%emt 0:00:04]} 9. O-O {[%emt 0:00:07]} Be6 {[%emt 0:00:14]} 10. Na3 {[%emt 0:00:11]} dxc3 {[%emt 0:00:15]} 11. Bxe6 {[%emt 0:00:06]} Qxd1 {[%emt 0:00:07]} (11... fxe6 12. Qe2) 12. Rxd1 {[%emt 0:00:07]} fxe6 {[%emt 0:00:07]} 13. Nb5 {[%emt 0:00:42]} Rc8 {[%emt 0:01:45]} 14. Nxc3 {[%emt 0:03:47]} h6 {[%emt 0:03:44] [#] B22: Sicilian: 2 c3.} 15. Nd4 $146 {[%emt 0:04:51]} (15. Re1) ({Predecessor:} 15. h4 g6 16. Ne4 Bg7 17. Nc5 Kf7 18. Nxb7 Na4 19. Rd7 Ke8 20. Rd3 Rc7 21. Rb3 e5 22. Be3 {½-½ (57) Chekhov,S (2465)-Teterev,V (2502) Elets 2014}) 15... Kf7 {[%emt 0:07:32]} 16. Be3 {[%emt 0:01:05]} Nc4 {[%emt 0:14:30]} (16... g5) 17. Nxc6 {[%emt 0:02:15]} Rxc6 {[%emt 0:00:55]} 18. Bxa7 {[%emt 0:00:49]} Nxb2 {[%emt 0:00:46]} 19. Rdb1 {[%emt 0:00:28]} Nc4 {[%emt 0:01:57]} 20. Ne4 {[%emt 0:00:44]} (20. Rxb7 Nd6 21. Rb3) (20. Rxb7 $11 Nd6 21. Rb3) 20... Nd6 {[%emt 0:07:39]} (20... b6) ({Black should play} 20... b6 $1 $15) 21. Nxd6+ $11 {[%emt 0:04:39]} exd6 {[%emt 0:00:10]} 22. Rxb7+ {[%emt 0:00:06]} Be7 {[%emt 0:00:26]} 23. a4 {[%emt 0:01:26]} Rhc8 {[%emt 0:05:57] [#] ( -> ...Rc1+)} 24. Be3 {[%emt 0:03:16] Inhibits Rc1+.} e5 {[%emt 0:11:30]} 25. a5 {[%emt 0:02:02] aiming for a6.} Ra6 {[%emt 0:00:54]} 26. Kf1 {[%emt 0:04:24]} Ke6 {[%emt 0:04:42] The position is equal.} 27. Ke2 {[%emt 0:01:51]} Rca8 {[%emt 0:04:52]} 28. Bd2 {[%emt 0:03:30]} h5 {[%emt 0:04:06]} 29. Ra2 {[%emt 0:02:27]} g6 {[%emt 0:00:32]} 30. Kd3 {[%emt 0:01:12]} d5 {[%emt 0:05:05]} 31. Ke2 {[%emt 0:02:45]} Bd8 {[%emt 0:04:14][%cal Rd8a5]} 32. Rg7 {[%emt 0:01:21]} Kf6 {[%emt 0:09:23]} 33. Rd7 {[%emt 0:03:20]} Bxa5 {[%emt 0:02:25]} 34. Rxd5 {[%emt 0:09:46]} Bxd2 {[%emt 0:02:42]} 35. Raxd2 {[%emt 0:01:25][%mdl 4096] Endgame KRR-KRR} Ra1 {[%emt 0:01:48]} 36. h4 {[%emt 0:02:14]} Kf5 {[%emt 0:02:18]} 37. g3 {[%emt 0:04:21]} R8a5 {[%emt 0:03:02]} 38. Rd6 {[%emt 0:04:14]} Ra6 {[%emt 0:00:14]} 39. R6d5 {[%emt 0:01:03]} R6a5 {[%emt 0:00:04]} 40. Rd8 {[%emt 0:00:20]} R5a2 {[%emt 0:01:20]} 41. Rf8+ {[%emt 0:37:20]} Ke6 {[%emt 0:12:04]} 42. Rxa2 {[%emt 0:00:00]} Rxa2+ {[%emt 0:00:06] KR-KR} 43. Ke3 {[%emt 0:00:00]} Ra4 {[%emt 0:00:53]} 44. Rb8 {[%emt 0:00:00]} Rg4 {[%emt 0:01:07]} 45. Rb6+ {[%emt 0:00:00]} Kf5 {[%emt 0:00:12]} 46. Ra6 {[%emt 0:00:00]} Re4+ {[%emt 0:03:01]} 47. Kf3 {[%emt 0:00:00]} Re1 {[%emt 0:00:23]} 48. Ra8 {[%emt 0:00:00]} e4+ {[%emt 0:00:29]} 49. Kg2 {[%emt 0:00:00]} Re2 {[%emt 0:03:07]} 50. Kg1 {[%emt 0:00:00]} Re1+ {[%emt 0:10:12]} 51. Kg2 {[%emt 0:00:00]} e3 {[%emt 0:00:23]} 52. Rf8+ {[%emt 0:00:00]} Ke5 {[%emt 0:01:33]} 53. Re8+ {[%emt 0:00:00]} Kd4 {[%emt 0:01:55]} 54. Rg8 {[%emt 0:00:00]} Ke4 {[%emt 0:02:57] Weighted Error Value: White=0.08 (flawless) /Black=0.07 (flawless)} ({But not} 54... e2 55. Kf3 Rb1 56. Kxe2 $16) (54... Re2 $11 55. Rd8+ Ke5 56. Re8+ Kd4 57. Rd8+ Ke5 58. Re8+ Kd4 59. Rd8+) 1-0